[Event "Late-Titled-Tuesday-Blitz-May-14-2024"]
[Site "Chess.com"]
[Date "2024.05.14"]
[Round "3"]
[White "egnfanclub"]
[Black "BabageldiAnnaberdiyev"]
[Result "1-0"]
[WhiteElo "2370"]
[BlackElo "2576"]
[TimeControl "180+1"]
[EndTime "14:30:35 PDT"]
[Termination "egnfanclub won on time"]

1. e4 {[%clk 0:03:00.9]} 1... c5 {[%clk 0:03:00]} 2. Nc3 {[%clk 0:03:00.1]} 2...
e6 {[%clk 0:02:59.9]} 3. f4 {[%clk 0:03:01]} 3... a6 {[%clk 0:02:59.1]} 4. Nf3
{[%clk 0:03:01.9]} 4... b5 {[%clk 0:02:59.4]} 5. d3 {[%clk 0:03:02.2]} 5... Bb7
{[%clk 0:02:59.1]} 6. g3 {[%clk 0:03:02.7]} 6... Nc6 {[%clk 0:02:59.8]} 7. Bg2
{[%clk 0:03:03]} 7... Qc7 {[%clk 0:02:59.8]} 8. O-O {[%clk 0:03:03.2]} 8... h5
{[%clk 0:03:00]} 9. f5 {[%clk 0:03:01.8]} 9... Be7 {[%clk 0:02:50.2]} 10. fxe6
{[%clk 0:03:01.6]} 10... dxe6 {[%clk 0:02:50.1]} 11. Bf4 {[%clk 0:02:59.9]}
11... Qb6 {[%clk 0:02:48]} 12. Qe2 {[%clk 0:02:32.9]} 12... Nf6 {[%clk
0:02:46.4]} 13. Ne5 {[%clk 0:02:24.7]} 13... Nd4 {[%clk 0:02:43.6]} 14. Qf2
{[%clk 0:02:20.3]} 14... Ng4 {[%clk 0:02:38.7]} 15. Nxg4 {[%clk 0:02:17.6]}
15... hxg4 {[%clk 0:02:39.6]} 16. Be3 {[%clk 0:02:08.6]} 16... f6 {[%clk
0:02:25.4]} 17. Bxd4 {[%clk 0:02:03.4]} 17... cxd4 {[%clk 0:02:26.3]} 18. Ne2
{[%clk 0:02:04]} 18... e5 {[%clk 0:02:26]} 19. c3 {[%clk 0:02:03.5]} 19... Rd8
{[%clk 0:02:10.3]} 20. cxd4 {[%clk 0:02:02.6]} 20... exd4 {[%clk 0:02:11.2]} 21.
Qf5 {[%clk 0:01:58.8]} 21... O-O {[%clk 0:01:43.9]} 22. Nf4 {[%clk 0:01:41.3]}
22... Bc8 {[%clk 0:01:39.7]} 23. Qg6 {[%clk 0:01:40.5]} 23... Qc5 {[%clk
0:01:27]} 24. Nd5 {[%clk 0:01:35.1]} 24... Rxd5 {[%clk 0:01:17.5]} 25. exd5
{[%clk 0:01:36]} 25... Bd6 {[%clk 0:01:17.2]} 26. Rac1 {[%clk 0:01:27.6]} 26...
Qb4 {[%clk 0:01:16.8]} 27. Be4 {[%clk 0:01:17]} 27... Qd2 {[%clk 0:00:59.8]} 28.
Qh7+ {[%clk 0:01:03.9]} 28... Kf7 {[%clk 0:00:59.7]} 29. Bg6+ {[%clk 0:00:58.5]}
29... Ke7 {[%clk 0:00:59.9]} 30. Rxc8 {[%clk 0:00:36.2]} 30... Rxc8 {[%clk
0:00:55.6]} 31. Qxg7+ {[%clk 0:00:36.2]} 31... Kd8 {[%clk 0:00:52.2]} 32. Bf5
{[%clk 0:00:27.1]} 32... Qe3+ {[%clk 0:00:45.6]} 33. Kh1 {[%clk 0:00:25.7]}
33... Rc7 {[%clk 0:00:42.3]} 34. Qxf6+ {[%clk 0:00:23.5]} 34... Qe7 {[%clk
0:00:33.7]} 35. Qh8+ {[%clk 0:00:23.5]} 35... Qf8 {[%clk 0:00:33.7]} 36. Qh4+
{[%clk 0:00:23]} 36... Qe7 {[%clk 0:00:30.4]} 37. Qh8+ {[%clk 0:00:22.9]} 37...
Qf8 {[%clk 0:00:29.7]} 38. Qxd4 {[%clk 0:00:23.5]} 38... Rc2 {[%clk 0:00:24.9]}
39. Qb6+ {[%clk 0:00:20.2]} 39... Bc7 {[%clk 0:00:24]} 40. Qxa6 {[%clk
0:00:19.4]} 40... Qd6 {[%clk 0:00:19.8]} 41. Qc8+ {[%clk 0:00:19]} 41... Ke7
{[%clk 0:00:19.7]} 42. Re1+ {[%clk 0:00:19.2]} 42... Kf7 {[%clk 0:00:18.3]} 43.
Qe8+ {[%clk 0:00:18.1]} 43... Kg7 {[%clk 0:00:18.7]} 44. Re7+ {[%clk 0:00:18]}
44... Kh6 {[%clk 0:00:19.2]} 45. Qh8+ {[%clk 0:00:17]} 45... Kg5 {[%clk
0:00:18]} 46. Qh4+ {[%clk 0:00:17.3]} 46... Kxf5 {[%clk 0:00:18.1]} 47. Qh5+
{[%clk 0:00:16.6]} 47... Kf6 {[%clk 0:00:17.9]} 48. Qf7+ {[%clk 0:00:13.8]}
48... Kg5 {[%clk 0:00:17.1]} 49. Qg7+ {[%clk 0:00:10]} 49... Kf5 {[%clk
0:00:16.5]} 50. Rf7+ {[%clk 0:00:09.8]} 50... Qf6 {[%clk 0:00:13.8]} 51. Rxf6+
{[%clk 0:00:09]} 51... Ke5 {[%clk 0:00:12.5]} 52. Qg5+ {[%clk 0:00:09.5]} 52...
Kd4 {[%clk 0:00:12.2]} 53. Qxg4+ {[%clk 0:00:09.6]} 53... Kxd3 {[%clk
0:00:12.2]} 54. Qf5+ {[%clk 0:00:09.1]} 54... Kd2 {[%clk 0:00:12.3]} 55. Qf2+
{[%clk 0:00:09.1]} 55... Kd3 {[%clk 0:00:12.1]} 56. Qf1+ {[%clk 0:00:08.6]}
56... Ke4 {[%clk 0:00:12.1]} 57. Rf3 {[%clk 0:00:08.6]} 57... Bb6 {[%clk
0:00:11]} 58. Qd3+ {[%clk 0:00:08.6]} 58... Ke5 {[%clk 0:00:11.2]} 59. Qxc2
{[%clk 0:00:09]} 59... Kd6 {[%clk 0:00:11.4]} 60. Qd3 {[%clk 0:00:09.4]} 60...
Bd4 {[%clk 0:00:12.2]} 61. Qxd4 {[%clk 0:00:08.6]} 61... b4 {[%clk 0:00:13.1]}
62. Rf6+ {[%clk 0:00:09]} 1-0

[Event "Late-Titled-Tuesday-Blitz-May-14-2024"]
[Site "Chess.com"]
[Date "2024.05.14"]
[Round "3"]
[White "ACollins05"]
[Black "Kiborg95"]
[Result "0-1"]
[WhiteElo "2541"]
[BlackElo "2898"]
[TimeControl "180+1"]
[EndTime "14:30:36 PDT"]
[Termination "Kiborg95 won by checkmate"]

1. b4 {[%clk 0:02:58.4]} 1... d6 {[%clk 0:02:55.6]} 2. Bb2 {[%clk 0:02:57.6]}
2... e5 {[%clk 0:02:56.4]} 3. e3 {[%clk 0:02:56.5]} 3... g6 {[%clk 0:02:57.1]}
4. Nf3 {[%clk 0:02:55.1]} 4... Bg7 {[%clk 0:02:57.8]} 5. Be2 {[%clk 0:02:51.3]}
5... Nh6 {[%clk 0:02:57.4]} 6. O-O {[%clk 0:02:50.8]} 6... O-O {[%clk
0:02:58.1]} 7. d4 {[%clk 0:02:47.9]} 7... e4 {[%clk 0:02:57.8]} 8. Nfd2 {[%clk
0:02:48.6]} 8... f5 {[%clk 0:02:58.3]} 9. c4 {[%clk 0:02:47.6]} 9... g5 {[%clk
0:02:54]} 10. Nc3 {[%clk 0:02:39.7]} 10... Nc6 {[%clk 0:02:53.9]} 11. g4 {[%clk
0:02:36.3]} 11... Nxg4 {[%clk 0:02:42.4]} 12. Bxg4 {[%clk 0:02:32.9]} 12... fxg4
{[%clk 0:02:43.3]} 13. b5 {[%clk 0:02:32.7]} 13... Ne7 {[%clk 0:02:40.9]} 14.
Ndxe4 {[%clk 0:02:31.8]} 14... Ng6 {[%clk 0:02:39.9]} 15. f3 {[%clk 0:02:22.7]}
15... h5 {[%clk 0:02:04.3]} 16. fxg4 {[%clk 0:02:19.4]} 16... Bxg4 {[%clk
0:02:05.2]} 17. Qd3 {[%clk 0:02:17.8]} 17... Nh4 {[%clk 0:01:55.2]} 18. Rxf8+
{[%clk 0:02:16.2]} 18... Bxf8 {[%clk 0:01:55.8]} 19. Rf1 {[%clk 0:02:07.6]}
19... Bg7 {[%clk 0:01:55.3]} 20. Nd5 {[%clk 0:02:06.7]} 20... Nf3+ {[%clk
0:01:49]} 21. Kg2 {[%clk 0:01:59.6]} 21... c6 {[%clk 0:01:49.4]} 22. Ndc3 {[%clk
0:01:29.9]} 22... Nh4+ {[%clk 0:01:44.8]} 23. Kg1 {[%clk 0:01:29]} 23... Qe7
{[%clk 0:01:40.3]} 24. bxc6 {[%clk 0:01:23.6]} 24... bxc6 {[%clk 0:01:41.2]} 25.
Ba3 {[%clk 0:01:23.5]} 25... Rd8 {[%clk 0:01:31.3]} 26. Nxd6 {[%clk 0:00:44]}
26... Rxd6 {[%clk 0:01:29.7]} 27. Ne4 {[%clk 0:00:44.6]} 27... Bf5 {[%clk
0:01:05.9]} 28. Bxd6 {[%clk 0:00:19.4]} 28... Qxe4 {[%clk 0:01:03.2]} 29. Qxe4
{[%clk 0:00:18.2]} 29... Bxe4 {[%clk 0:01:04.1]} 30. Bg3 {[%clk 0:00:13.4]}
30... Nf5 {[%clk 0:00:57.2]} 31. Kf2 {[%clk 0:00:13.1]} 31... Kf7 {[%clk
0:00:41.2]} 32. Bb8 {[%clk 0:00:12.9]} 32... a6 {[%clk 0:00:41.1]} 33. Rd1
{[%clk 0:00:11.6]} 33... Ke6 {[%clk 0:00:41.1]} 34. Rd2 {[%clk 0:00:11.1]} 34...
h4 {[%clk 0:00:35.3]} 35. Rb2 {[%clk 0:00:11.5]} 35... Nxd4 {[%clk 0:00:35.7]}
36. Rb6 {[%clk 0:00:10.1]} 36... Nf5 {[%clk 0:00:24]} 37. Rxa6 {[%clk
0:00:09.3]} 37... g4 {[%clk 0:00:24.7]} 38. a4 {[%clk 0:00:07.6]} 38... Bh6
{[%clk 0:00:25.2]} 39. Ra8 {[%clk 0:00:04.4]} 39... Bxe3+ {[%clk 0:00:24.3]} 40.
Ke2 {[%clk 0:00:04.9]} 40... Bc5 {[%clk 0:00:20.6]} 41. a5 {[%clk 0:00:03.7]}
41... g3 {[%clk 0:00:19.6]} 42. hxg3 {[%clk 0:00:03.3]} 42... hxg3 {[%clk
0:00:20.5]} 43. Bxg3 {[%clk 0:00:01.6]} 43... Nxg3+ {[%clk 0:00:20.5]} 44. Kd2
{[%clk 0:00:02.5]} 44... Kd6 {[%clk 0:00:15.2]} 45. a6 {[%clk 0:00:03.1]} 45...
Kc7 {[%clk 0:00:15.6]} 46. Rg8 {[%clk 0:00:02]} 46... Nf5 {[%clk 0:00:13.3]} 47.
a7 {[%clk 0:00:01.7]} 47... Bxa7 {[%clk 0:00:12.7]} 48. Rf8 {[%clk 0:00:02.6]}
48... Kd6 {[%clk 0:00:12.4]} 49. Rh8 {[%clk 0:00:03.5]} 49... Bd4 {[%clk
0:00:12.6]} 50. Rh7 {[%clk 0:00:02.7]} 50... Kc5 {[%clk 0:00:12.8]} 51. Rc7
{[%clk 0:00:02.3]} 51... Kxc4 {[%clk 0:00:12.8]} 52. Rc8 {[%clk 0:00:03.1]}
52... c5 {[%clk 0:00:13.3]} 53. Ra8 {[%clk 0:00:03.8]} 53... Bc3+ {[%clk
0:00:13.1]} 54. Kc1 {[%clk 0:00:03.8]} 54... Nd4 {[%clk 0:00:13.2]} 55. Ra4+
{[%clk 0:00:04.7]} 55... Kd3 {[%clk 0:00:13.1]} 56. Ra2 {[%clk 0:00:04.4]} 56...
c4 {[%clk 0:00:13.2]} 57. Kd1 {[%clk 0:00:04.8]} 57... Bf3+ {[%clk 0:00:13.3]}
58. Kc1 {[%clk 0:00:05.3]} 58... Bb4 {[%clk 0:00:12.8]} 59. Rc2 {[%clk
0:00:04.7]} 59... Nxc2 {[%clk 0:00:12.4]} 60. Kb1 {[%clk 0:00:05]} 60... Nd4
{[%clk 0:00:11.6]} 61. Kb2 {[%clk 0:00:05.9]} 61... c3+ {[%clk 0:00:12.1]} 62.
Kc1 {[%clk 0:00:06.6]} 62... c2 {[%clk 0:00:12]} 63. Kb2 {[%clk 0:00:06.8]}
63... Ba3+ {[%clk 0:00:11.8]} 64. Ka2 {[%clk 0:00:06.6]} 64... Bd5+ {[%clk
0:00:10.9]} 65. Kxa3 {[%clk 0:00:04.9]} 65... c1=Q+ {[%clk 0:00:11.6]} 66. Ka4
{[%clk 0:00:05.1]} 66... Qc4+ {[%clk 0:00:10.7]} 67. Ka5 {[%clk 0:00:05.2]}
67... Qb5# {[%clk 0:00:11]} 0-1

[Event "Late-Titled-Tuesday-Blitz-May-14-2024"]
[Site "Chess.com"]
[Date "2024.05.14"]
[Round "3"]
[White "Malev212"]
[Black "Atanejhad"]
[Result "0-1"]
[WhiteElo "2610"]
[BlackElo "2463"]
[TimeControl "180+1"]
[EndTime "14:30:36 PDT"]
[Termination "Atanejhad won on time"]

1. e4 {[%clk 0:03:00.9]} 1... e5 {[%clk 0:02:59.1]} 2. Nf3 {[%clk 0:02:59.6]}
2... Nc6 {[%clk 0:02:58.5]} 3. d4 {[%clk 0:02:59.4]} 3... exd4 {[%clk
0:02:57.7]} 4. Bc4 {[%clk 0:02:59]} 4... Nf6 {[%clk 0:02:56.9]} 5. e5 {[%clk
0:02:57.3]} 5... d5 {[%clk 0:02:56.8]} 6. Bb5 {[%clk 0:02:56.5]} 6... Ne4 {[%clk
0:02:56.2]} 7. Nxd4 {[%clk 0:02:56.4]} 7... Bd7 {[%clk 0:02:55.4]} 8. Bxc6
{[%clk 0:02:55.4]} 8... bxc6 {[%clk 0:02:56.3]} 9. O-O {[%clk 0:02:51.9]} 9...
Bc5 {[%clk 0:02:44.1]} 10. f3 {[%clk 0:02:48.7]} 10... Ng5 {[%clk 0:02:43.7]}
11. f4 {[%clk 0:02:47.9]} 11... Ne4 {[%clk 0:02:43.5]} 12. Be3 {[%clk
0:02:47.6]} 12... Bb6 {[%clk 0:02:38.1]} 13. Nd2 {[%clk 0:02:44.9]} 13... Nxd2
{[%clk 0:02:27]} 14. Qxd2 {[%clk 0:02:44.1]} 14... O-O {[%clk 0:02:24.6]} 15.
Rae1 {[%clk 0:02:04.8]} 15... Re8 {[%clk 0:02:22.8]} 16. c3 {[%clk 0:01:30.1]}
16... f6 {[%clk 0:02:13.4]} 17. Nf3 {[%clk 0:01:21.8]} 17... Bf5 {[%clk
0:02:07.9]} 18. exf6 {[%clk 0:01:17.1]} 18... Qxf6 {[%clk 0:02:05.7]} 19. Bd4
{[%clk 0:01:12]} 19... Qh6 {[%clk 0:01:29.8]} 20. b4 {[%clk 0:01:09.7]} 20... a5
{[%clk 0:01:13.5]} 21. Rxe8+ {[%clk 0:01:01.4]} 21... Rxe8 {[%clk 0:01:12]} 22.
Bxb6 {[%clk 0:01:00.8]} 22... cxb6 {[%clk 0:01:12.9]} 23. bxa5 {[%clk
0:00:58.9]} 23... bxa5 {[%clk 0:01:13.8]} 24. Qd4 {[%clk 0:00:51.3]} 24... Qd6
{[%clk 0:01:03.9]} 25. Ne5 {[%clk 0:00:47.4]} 25... Be4 {[%clk 0:01:00.7]} 26.
Rf2 {[%clk 0:00:38.3]} 26... Rb8 {[%clk 0:00:58.3]} 27. h3 {[%clk 0:00:38]}
27... Rb1+ {[%clk 0:00:52]} 28. Kh2 {[%clk 0:00:37]} 28... c5 {[%clk 0:00:47.7]}
29. Qe3 {[%clk 0:00:35.4]} 29... h6 {[%clk 0:00:34.5]} 30. Rd2 {[%clk
0:00:34.6]} 30... Qb6 {[%clk 0:00:30.4]} 31. Nd7 {[%clk 0:00:34.2]} 31... Qg6
{[%clk 0:00:19.6]} 32. Nxc5 {[%clk 0:00:32.5]} 32... Ra1 {[%clk 0:00:16.9]} 33.
Nxe4 {[%clk 0:00:28.9]} 33... Qxe4 {[%clk 0:00:16.4]} 34. Qxe4 {[%clk
0:00:27.5]} 34... dxe4 {[%clk 0:00:17.3]} 35. Rc2 {[%clk 0:00:22.7]} 35... Rd1
{[%clk 0:00:14.4]} 36. Kg3 {[%clk 0:00:20.1]} 36... Kf7 {[%clk 0:00:12.9]} 37.
Kf2 {[%clk 0:00:18.8]} 37... Ke6 {[%clk 0:00:12]} 38. c4 {[%clk 0:00:18.2]}
38... Rd3 {[%clk 0:00:11]} 39. c5 {[%clk 0:00:17.4]} 39... Kd7 {[%clk 0:00:11]}
40. c6+ {[%clk 0:00:17.5]} 40... Kc7 {[%clk 0:00:11.1]} 41. Ke2 {[%clk
0:00:17.2]} 41... g5 {[%clk 0:00:11.1]} 42. f5 {[%clk 0:00:16]} 42... Rd5 {[%clk
0:00:08.2]} 43. f6 {[%clk 0:00:13.2]} 43... Rf5 {[%clk 0:00:07.9]} 44. Ke3
{[%clk 0:00:13.6]} 44... Rxf6 {[%clk 0:00:08.3]} 45. Kxe4 {[%clk 0:00:13.9]}
45... Rf1 {[%clk 0:00:06]} 46. Ke5 {[%clk 0:00:11.8]} 46... a4 {[%clk
0:00:05.8]} 47. Ke6 {[%clk 0:00:10.1]} 47... a3 {[%clk 0:00:06.1]} 48. Ke5
{[%clk 0:00:08.7]} 48... Rb1 {[%clk 0:00:05.5]} 49. g4 {[%clk 0:00:07.7]} 49...
Rb2 {[%clk 0:00:05.2]} 50. Rc3 {[%clk 0:00:07.4]} 50... Rxa2 {[%clk 0:00:05.3]}
51. Kf6 {[%clk 0:00:07.1]} 51... Ra1 {[%clk 0:00:05.1]} 52. Kg6 {[%clk
0:00:06.4]} 52... a2 {[%clk 0:00:05.4]} 53. Rc2 {[%clk 0:00:04.9]} 53... Rh1
{[%clk 0:00:03.9]} 54. Rxa2 {[%clk 0:00:03.7]} 54... Rxh3 {[%clk 0:00:04.4]} 55.
Rc2 {[%clk 0:00:02.3]} 55... Rh4 {[%clk 0:00:04.1]} 56. Kf5 {[%clk 0:00:02.3]}
56... Rh1 {[%clk 0:00:02.4]} 57. Rc4 {[%clk 0:00:02.3]} 57... Rd1 {[%clk
0:00:01.8]} 58. Kg6 {[%clk 0:00:02.2]} 58... Rd6+ {[%clk 0:00:01.6]} 59. Kg7
{[%clk 0:00:02]} 59... Re6 {[%clk 0:00:00.6]} 60. Ra4 {[%clk 0:00:00.8]} 60...
Rxc6 {[%clk 0:00:00.5]} 61. Ra7+ {[%clk 0:00:00.2]} 61... Kb6 {[%clk 0:00:00.7]}
0-1

[Event "Late-Titled-Tuesday-Blitz-May-14-2024"]
[Site "Chess.com"]
[Date "2024.05.14"]
[Round "3"]
[White "FairChess_on_YouTube"]
[Black "MarcoRiehle"]
[Result "0-1"]
[WhiteElo "3068"]
[BlackElo "2804"]
[TimeControl "180+1"]
[EndTime "14:30:37 PDT"]
[Termination "MarcoRiehle won on time"]

1. Nf3 {[%clk 0:03:00.9]} 1... c5 {[%clk 0:02:57]} 2. g3 {[%clk 0:02:59.4]} 2...
Nc6 {[%clk 0:02:56.7]} 3. Bg2 {[%clk 0:02:59.6]} 3... e5 {[%clk 0:02:56.6]} 4.
O-O {[%clk 0:02:59.8]} 4... d5 {[%clk 0:02:57]} 5. d3 {[%clk 0:02:58.8]} 5...
Nge7 {[%clk 0:02:57]} 6. c4 {[%clk 0:02:55.9]} 6... f6 {[%clk 0:02:56.2]} 7. Nc3
{[%clk 0:02:48.6]} 7... Be6 {[%clk 0:02:56.1]} 8. Qa4 {[%clk 0:02:46.6]} 8...
Qd7 {[%clk 0:02:54.2]} 9. e4 {[%clk 0:02:46.4]} 9... dxc4 {[%clk 0:02:49.1]} 10.
dxc4 {[%clk 0:02:46.5]} 10... Nd4 {[%clk 0:02:49.2]} 11. Qxd7+ {[%clk
0:02:46.1]} 11... Kxd7 {[%clk 0:02:49.2]} 12. Nd5 {[%clk 0:02:40.3]} 12... b5
{[%clk 0:02:41.8]} 13. cxb5 {[%clk 0:02:32.8]} 13... Nxb5 {[%clk 0:02:36.2]} 14.
Be3 {[%clk 0:02:26.7]} 14... Nd4 {[%clk 0:02:35.4]} 15. Rfd1 {[%clk 0:02:21.5]}
15... Bxd5 {[%clk 0:01:29.1]} 16. exd5 {[%clk 0:02:20]} 16... Nef5 {[%clk
0:01:29.5]} 17. d6 {[%clk 0:01:58.7]} 17... Rb8 {[%clk 0:01:25.9]} 18. Bh3
{[%clk 0:01:50.3]} 18... Nxf3+ {[%clk 0:01:21.1]} 19. Kg2 {[%clk 0:01:50.6]}
19... Nd4 {[%clk 0:01:15.6]} 20. Bxd4 {[%clk 0:01:50.5]} 20... cxd4 {[%clk
0:01:14.2]} 21. Bxf5+ {[%clk 0:01:51.1]} 21... Kxd6 {[%clk 0:01:14.1]} 22. Rac1
{[%clk 0:01:50.5]} 22... Be7 {[%clk 0:01:06.9]} 23. Rc4 {[%clk 0:01:47.1]} 23...
g6 {[%clk 0:01:05.8]} 24. Bh3 {[%clk 0:01:46.4]} 24... f5 {[%clk 0:00:45.8]} 25.
Rdc1 {[%clk 0:01:46.6]} 25... Ke6 {[%clk 0:00:45.8]} 26. b3 {[%clk 0:01:43.7]}
26... Rhd8 {[%clk 0:00:41.5]} 27. g4 {[%clk 0:01:42.7]} 27... Rb6 {[%clk
0:00:36.9]} 28. gxf5+ {[%clk 0:01:42]} 28... gxf5 {[%clk 0:00:37.7]} 29. Rc7
{[%clk 0:01:28.5]} 29... Bg5 {[%clk 0:00:28.1]} 30. Re1 {[%clk 0:01:22.4]} 30...
d3 {[%clk 0:00:26.4]} 31. Kf3 {[%clk 0:01:13.5]} 31... Rd4 {[%clk 0:00:16.7]}
32. Rxh7 {[%clk 0:01:04.9]} 32... e4+ {[%clk 0:00:16.3]} 33. Kg2 {[%clk
0:01:02.1]} 33... Rc6 {[%clk 0:00:16.2]} 34. Kf1 {[%clk 0:00:46]} 34... Rc2
{[%clk 0:00:11.4]} 35. Rxa7 {[%clk 0:00:45]} 35... Rd5 {[%clk 0:00:11]} 36.
Rxe4+ {[%clk 0:00:43.6]} 36... Kd6 {[%clk 0:00:09]} 37. Ra6+ {[%clk 0:00:38.5]}
37... Kc7 {[%clk 0:00:07.8]} 38. Ra7+ {[%clk 0:00:18.1]} 38... Kb6 {[%clk
0:00:07.3]} 39. Rea4 {[%clk 0:00:18.7]} 39... d2 {[%clk 0:00:06.6]} 40. R4a6+
{[%clk 0:00:17]} 40... Kc5 {[%clk 0:00:07.2]} 41. Ra5+ {[%clk 0:00:17.5]} 41...
Kd4 {[%clk 0:00:07.7]} 42. Rxd5+ {[%clk 0:00:17.8]} 42... Kxd5 {[%clk
0:00:08.6]} 43. Ke2 {[%clk 0:00:13.3]} 43... Rc1 {[%clk 0:00:08.5]} 44. Rd7+
{[%clk 0:00:13.5]} 44... Kc6 {[%clk 0:00:08.9]} 45. Rxd2 {[%clk 0:00:11.4]}
45... Bxd2 {[%clk 0:00:09.8]} 46. Kxd2 {[%clk 0:00:11.8]} 46... Ra1 {[%clk
0:00:09]} 47. a4 {[%clk 0:00:11.9]} 47... Ra2+ {[%clk 0:00:08.7]} 48. Ke3 {[%clk
0:00:12.3]} 48... f4+ {[%clk 0:00:09.4]} 49. Kf3 {[%clk 0:00:10.4]} 49... Kd6
{[%clk 0:00:09.3]} 50. Bf1 {[%clk 0:00:07.2]} 50... Ke5 {[%clk 0:00:08.2]} 51.
Bc4 {[%clk 0:00:07.2]} 51... Rc2 {[%clk 0:00:08.7]} 52. a5 {[%clk 0:00:07.1]}
52... Rc3+ {[%clk 0:00:08]} 53. Kg4 {[%clk 0:00:07.5]} 53... Rc2 {[%clk
0:00:07.4]} 54. Kf3 {[%clk 0:00:06.9]} 54... Rc3+ {[%clk 0:00:07.2]} 55. Kg2
{[%clk 0:00:07.5]} 55... f3+ {[%clk 0:00:06.8]} 56. Kg3 {[%clk 0:00:07.4]} 56...
Ke4 {[%clk 0:00:07.5]} 57. a6 {[%clk 0:00:07.5]} 57... Rc1 {[%clk 0:00:07.4]}
58. Bb5 {[%clk 0:00:05.5]} 58... Rg1+ {[%clk 0:00:07.6]} 59. Kh3 {[%clk
0:00:05.1]} 59... Kf4 {[%clk 0:00:07.2]} 60. Kh4 {[%clk 0:00:01.6]} 60... Rg4+
{[%clk 0:00:07.8]} 61. Kh5 {[%clk 0:00:02.1]} 61... Rg5+ {[%clk 0:00:08.7]} 62.
Kh6 {[%clk 0:00:02.6]} 62... Rxb5 {[%clk 0:00:09.6]} 63. h4 {[%clk 0:00:02.5]}
63... Rb6+ {[%clk 0:00:10]} 64. Kg7 {[%clk 0:00:02.4]} 64... Rxa6 {[%clk
0:00:10.9]} 65. h5 {[%clk 0:00:02.8]} 65... Kg5 {[%clk 0:00:11.8]} 0-1

[Event "Late-Titled-Tuesday-Blitz-May-14-2024"]
[Site "Chess.com"]
[Date "2024.05.14"]
[Round "3"]
[White "varunkrishnanchess"]
[Black "Seochesspie"]
[Result "0-1"]
[WhiteElo "2605"]
[BlackElo "2840"]
[TimeControl "180+1"]
[EndTime "14:30:37 PDT"]
[Termination "Seochesspie won by checkmate"]

1. a3 {[%clk 0:03:00.9]} 1... g6 {[%clk 0:02:58]} 2. d4 {[%clk 0:02:57.5]} 2...
Bg7 {[%clk 0:02:58.1]} 3. e4 {[%clk 0:02:57.3]} 3... d6 {[%clk 0:02:58]} 4. Nf3
{[%clk 0:02:55.2]} 4... Nf6 {[%clk 0:02:57.9]} 5. Nc3 {[%clk 0:02:54.4]} 5...
O-O {[%clk 0:02:56]} 6. Be2 {[%clk 0:02:50.2]} 6... Nc6 {[%clk 0:02:53.3]} 7.
O-O {[%clk 0:02:49.5]} 7... a6 {[%clk 0:02:50.9]} 8. h3 {[%clk 0:02:47.6]} 8...
b5 {[%clk 0:02:50.7]} 9. Be3 {[%clk 0:02:45.9]} 9... Bb7 {[%clk 0:02:46.8]} 10.
d5 {[%clk 0:02:41]} 10... Nb8 {[%clk 0:02:46.7]} 11. Qd2 {[%clk 0:02:33]} 11...
c6 {[%clk 0:02:43.3]} 12. Rad1 {[%clk 0:02:23.9]} 12... Nbd7 {[%clk 0:02:42.6]}
13. Bf4 {[%clk 0:02:17.7]} 13... cxd5 {[%clk 0:02:39.4]} 14. exd5 {[%clk
0:02:17.6]} 14... Nb6 {[%clk 0:02:39.2]} 15. Bh6 {[%clk 0:02:12.8]} 15... Nbxd5
{[%clk 0:02:33.6]} 16. Bxg7 {[%clk 0:02:12.5]} 16... Kxg7 {[%clk 0:02:34.5]} 17.
Nxd5 {[%clk 0:02:12]} 17... Bxd5 {[%clk 0:02:33.3]} 18. Nd4 {[%clk 0:02:12]}
18... Rc8 {[%clk 0:02:28.7]} 19. Qg5 {[%clk 0:02:10.1]} 19... Bb7 {[%clk
0:02:15.7]} 20. Rfe1 {[%clk 0:02:09.2]} 20... e6 {[%clk 0:02:13]} 21. Bd3 {[%clk
0:02:00.1]} 21... Nd5 {[%clk 0:01:56.7]} 22. Qg3 {[%clk 0:01:58.6]} 22... Kh8
{[%clk 0:01:37.4]} 23. h4 {[%clk 0:01:55.7]} 23... e5 {[%clk 0:01:32.7]} 24. Nf3
{[%clk 0:01:52.5]} 24... Nf4 {[%clk 0:01:31.8]} 25. Be4 {[%clk 0:01:35.5]} 25...
Bxe4 {[%clk 0:01:29.6]} 26. Rxe4 {[%clk 0:01:35.1]} 26... Rxc2 {[%clk
0:01:17.7]} 27. Rxf4 {[%clk 0:01:25.9]} 27... exf4 {[%clk 0:01:17.1]} 28. Qxf4
{[%clk 0:01:26.8]} 28... Qe7 {[%clk 0:01:06.3]} 29. Rxd6 {[%clk 0:01:20.4]}
29... Qe2 {[%clk 0:00:48.6]} 30. Nd4 {[%clk 0:01:02.7]} 30... Qe1+ {[%clk
0:00:45.6]} 31. Kh2 {[%clk 0:01:02.9]} 31... Rxf2 {[%clk 0:00:39.8]} 32. Nf3
{[%clk 0:00:54.9]} 32... Qe2 {[%clk 0:00:37.6]} 33. Rd8 {[%clk 0:00:41]} 33...
Rxg2+ {[%clk 0:00:25.1]} 34. Kh3 {[%clk 0:00:36.4]} 34... Qe6+ {[%clk
0:00:20.3]} 35. Kxg2 {[%clk 0:00:36.6]} 35... Rxd8 {[%clk 0:00:20.7]} 36. Ng5
{[%clk 0:00:36.1]} 36... Qe2+ {[%clk 0:00:20.3]} 37. Kg3 {[%clk 0:00:34.4]}
37... Rd3+ {[%clk 0:00:20.1]} 38. Nf3 {[%clk 0:00:34.7]} 38... Rxf3+ {[%clk
0:00:20]} 39. Qxf3 {[%clk 0:00:35.6]} 39... Qxf3+ {[%clk 0:00:20.3]} 40. Kxf3
{[%clk 0:00:36.5]} 40... f5 {[%clk 0:00:20.1]} 41. Ke3 {[%clk 0:00:30.8]} 41...
Kg7 {[%clk 0:00:20.3]} 42. Kd4 {[%clk 0:00:31]} 42... Kf6 {[%clk 0:00:20.2]} 43.
Kc5 {[%clk 0:00:31.3]} 43... f4 {[%clk 0:00:20.6]} 44. Kd4 {[%clk 0:00:31.5]}
44... Kf5 {[%clk 0:00:20.7]} 45. Kd3 {[%clk 0:00:31.9]} 45... Kg4 {[%clk
0:00:20.8]} 46. Ke2 {[%clk 0:00:32.2]} 46... Kxh4 {[%clk 0:00:20.9]} 47. Kf3
{[%clk 0:00:33]} 47... g5 {[%clk 0:00:21.2]} 48. b4 {[%clk 0:00:33.3]} 48... h5
{[%clk 0:00:21.3]} 49. a4 {[%clk 0:00:33.6]} 49... bxa4 {[%clk 0:00:21.2]} 50.
b5 {[%clk 0:00:34.5]} 50... axb5 {[%clk 0:00:21]} 51. Kf2 {[%clk 0:00:34.6]}
51... b4 {[%clk 0:00:21.2]} 52. Kf3 {[%clk 0:00:35.2]} 52... a3 {[%clk
0:00:21.5]} 53. Kg2 {[%clk 0:00:35.5]} 53... g4 {[%clk 0:00:21.5]} 54. Kh2
{[%clk 0:00:35.6]} 54... Kg5 {[%clk 0:00:22.4]} 55. Kg2 {[%clk 0:00:35.1]} 55...
b3 {[%clk 0:00:23.3]} 56. Kh2 {[%clk 0:00:35.7]} 56... h4 {[%clk 0:00:24.2]} 57.
Kg2 {[%clk 0:00:36.6]} 57... Kf6 {[%clk 0:00:24.8]} 58. Kf2 {[%clk 0:00:37.5]}
58... Ke6 {[%clk 0:00:25.4]} 59. Ke2 {[%clk 0:00:38.4]} 59... h3 {[%clk
0:00:25.3]} 60. Kd3 {[%clk 0:00:39.3]} 60... Kd7 {[%clk 0:00:25.7]} 61. Kc4
{[%clk 0:00:40.2]} 61... b2 {[%clk 0:00:25.9]} 62. Kd4 {[%clk 0:00:41.1]} 62...
b1=Q {[%clk 0:00:25.4]} 63. Ke5 {[%clk 0:00:41.1]} 63... a2 {[%clk 0:00:25.2]}
64. Kf6 {[%clk 0:00:42]} 64... a1=Q+ {[%clk 0:00:25]} 65. Kg5 {[%clk 0:00:42.9]}
65... g3 {[%clk 0:00:24.2]} 66. Kh6 {[%clk 0:00:41.7]} 66... Kd6 {[%clk
0:00:22.6]} 67. Kg5 {[%clk 0:00:42.6]} 67... Ke5 {[%clk 0:00:22.8]} 68. Kg4
{[%clk 0:00:42.6]} 68... h2 {[%clk 0:00:22.4]} 69. Kf3 {[%clk 0:00:43.5]} 69...
Qe4+ {[%clk 0:00:22.1]} 70. Kg4 {[%clk 0:00:42.7]} 70... f3+ {[%clk 0:00:22.3]}
71. Kg5 {[%clk 0:00:42.4]} 71... Qc1+ {[%clk 0:00:21.5]} 72. Kh5 {[%clk
0:00:04.4]} 72... Qf5+ {[%clk 0:00:19.9]} 73. Kh4 {[%clk 0:00:04.4]} 73... Qcg5#
{[%clk 0:00:18.6]} 0-1